fUST/lending_fUST_20250628
["ID","MTS","AMOUNT","RATE_DAILY","PERIOD"]
[368306328,1751106645070,-396.0,0.00019825,2]
[368306329,1751106645079,-420.0,0.00019825,2]
[368306330,1751106645089,-261.0,0.00019843,2]
[368306331,1751106645099,-261.0,0.00019852,2]
[368306332,1751106645108,-7911.2825093,0.000199,2]
[368306333,1751106645117,-1680.0,0.00019923,2]
[368306334,1751106645126,-500.0,0.00019924,2]
[368306335,1751106645135,-1185.85451162,0.00019965,2]
[368306336,1751106645145,-500.0,0.00019999,2]
[368306337,1751106645154,-500.0,0.00019999,2]
[368306338,1751106645163,-500.0,0.00019999,2]
[368306339,1751106645172,-460.0,0.0002,2]
[368306340,1751106645182,-411.75323977,0.0002,2]
[368306341,1751106645191,-460.0,0.0002,2]
[368306342,1751106645200,-580.0,0.0002,2]
[368306343,1751106645209,-469.38,0.0002,2]
[368306344,1751106645218,-460.0,0.0002,2]
[368306345,1751106645227,-460.0,0.0002,2]
[368306346,1751106645236,-460.0,0.0002,2]
[368306347,1751106645245,-695.48,0.0002,2]
[368306348,1751106645255,-460.0,0.0002,2]
[368306349,1751106645265,-460.0,0.0002,2]
[368306350,1751106645274,-460.0,0.0002,2]
[368306351,1751106645283,-858.67,0.0002,2]
[368306352,1751106645293,-206.99051486,0.0002,2]
[368306353,1751106645302,-438.28632599,0.0002,2]
[368306354,1751106645311,-1077.62,0.0002,2]
[368306355,1751106645320,-460.0,0.0002,2]
[368306356,1751106645330,-460.0,0.0002,2]
[368306357,1751106645339,-537.78,0.0002,2]
[368306358,1751106645349,-644.65,0.0002,2]
[368306359,1751106645358,-555.2,0.0002,2]
[368306360,1751106645367,-460.0,0.0002,2]
[368306361,1751106645376,-460.0,0.0002,2]
[368306362,1751106645385,-460.0,0.0002,2]
[368306363,1751106645394,-1977.11,0.0002,2]
[368306364,1751106645403,-2228.33,0.0002,2]
[368306365,1751106645413,-460.0,0.0002,2]
[368306366,1751106645422,-460.0,0.0002,2]
[368306367,1751106645431,-460.0,0.0002,2]
[368306368,1751106645440,-460.0,0.0002,2]
[368306369,1751106645449,-652.63,0.0002,2]
[368306370,1751106645459,-460.0,0.0002,2]
[368306371,1751106645468,-460.0,0.0002,2]
[368306372,1751106645477,-573.62,0.0002,2]
[368306373,1751106645486,-460.0,0.0002,2]
[368306374,1751106645495,-1764.57,0.0002,2]
[368306375,1751106645505,-460.0,0.0002,2]
[368306376,1751106645514,-539.94,0.0002,2]
[368306377,1751106645523,-460.0,0.0002,2]
[368306378,1751106645532,-460.0,0.0002,2]
[368306379,1751106645542,-509.66,0.0002,2]
[368306380,1751106645551,-2231.09,0.0002,2]
[368306381,1751106645561,-460.0,0.0002,2]
[368306382,1751106645570,-845.26,0.0002,2]
[368306383,1751106645579,-2259.74,0.0002,2]
[368306384,1751106645588,-460.0,0.0002,2]
[368306385,1751106645598,-460.0,0.0002,2]
[368306386,1751106645608,-3202.63,0.0002,2]
[368306387,1751106645617,-821.41,0.0002,2]
[368306388,1751106645627,-460.0,0.0002,2]
[368306389,1751106645635,-460.0,0.0002,2]
[368306390,1751106645644,-655.26651717,0.0002,2]
[368306391,1751106645653,-511.78,0.0002,2]
[368306392,1751106645663,-460.0,0.0002,2]
[368306393,1751106645675,-1620.3,0.0002,2]
[368306394,1751106645685,-460.0,0.0002,2]
[368306395,1751106645694,-460.0,0.0002,2]
[368306396,1751106645703,-18803.49168301,0.0002,2]
[368306397,1751106645714,-460.0,0.0002,2]
[368306398,1751106645724,-460.0,0.0002,2]
[368306399,1751106645734,-1969.14,0.0002,2]
[368306400,1751106645743,-589.27,0.0002,2]
[368306401,1751106645752,-460.0,0.0002,2]
[368306402,1751106645761,-460.0,0.0002,2]
[368306403,1751106645770,-1486.95,0.0002,2]
[368306404,1751106645779,-460.0,0.0002,2]
[368306405,1751106645788,-460.0,0.0002,2]
[368306406,1751106645798,-460.0,0.0002,2]
[368306407,1751106645808,-460.0,0.0002,2]
[368306408,1751106645817,-312.71497975,0.0002,2]
[368306409,1751106645826,-300.0,0.0002,2]
[368306410,1751106645835,-1282.48,0.0002,2]
[368306411,1751106645844,-3912.61,0.0002,2]
[368306412,1751106645854,-480.16,0.0002,2]
[368306413,1751106645864,-489.39,0.0002,2]
[368306415,1751106645873,-516.01,0.0002,2]
[368306417,1751106645882,-514.13,0.0002,2]
[368306418,1751106645891,-460.0,0.0002,2]
[368306419,1751106645901,-460.0,0.0002,2]
[368306420,1751106645911,-460.0,0.0002,2]
[368306421,1751106645920,-460.0,0.0002,2]
[368306422,1751106645930,-460.0,0.0002,2]
[368306423,1751106645938,-1432.27,0.0002,2]
[368306424,1751106645947,-3305.21,0.0002,2]
[368306425,1751106645956,-460.0,0.0002,2]
[368306426,1751106645966,-427.84153915,0.0002,2]
[368306427,1751106645976,-698.46,0.0002,2]
[368306428,1751106645986,-1210.2,0.0002,2]
[368306429,1751106645996,-460.0,0.0002,2]
[368306430,1751106646006,-471.34,0.0002,2]
[368306431,1751106646016,-460.0,0.0002,2]
[368306432,1751106646025,-810.23,0.0002,2]
[368306433,1751106646034,-1000.0,0.00020091,2]
[368306434,1751106646042,-160.0,0.00020104,2]
[368306435,1751106646165,-160.0,0.00020104,2]
[368306436,1751106646174,-213.78848551,0.00020104,2]
[368306437,1751106646183,-214.95397287,0.00020104,2]
[368306438,1751106646192,-12564.78152626,0.00020104,2]
[368306439,1751106646202,-160.0,0.00020104,2]
[368306440,1751106646210,-837.06984471,0.00020104,2]
[368306441,1751106646219,-847.18566335,0.00020104,2]
[368306442,1751106646228,-160.0,0.00020104,2]
[368306443,1751106646237,-230.28494567,0.00020104,2]
[368306444,1751106646246,-160.0,0.00020104,2]
[368306445,1751106646256,-160.0,0.00020104,2]
[368306446,1751106646264,-7911.28250911,0.00020107,2]
[368306447,1751106646273,-245.0,0.00020137,2]
[368306448,1751106646282,-151.0,0.00020137,2]
[368306449,1751106646291,-155.97576151,0.00020137,2]
[368306450,1751106646300,-151.0,0.00020137,2]
[368306451,1751106646310,-151.0,0.00020137,2]
[368306452,1751106646319,-151.0,0.00020137,2]
[368306453,1751106646328,-151.0,0.00020137,2]
[368306454,1751106646337,-151.0550023,0.00020137,2]
[368306455,1751106646346,-151.03776761,0.00020137,2]
[368306456,1751106646355,-151.00208844,0.00020137,2]
[368306457,1751106646364,-237.53382996,0.00020137,2]
[368306458,1751106646373,-500.0,0.00020137,2]
[368306459,1751106646383,-500.0,0.00020137,2]
[368306460,1751106646392,-155.63764553,0.00020137,2]
[368306461,1751106646401,-326.87,0.00020161,2]
[368306462,1751106646410,-151.0,0.00020164,2]
[368306463,1751106646419,-151.0,0.00020164,2]
[368306464,1751106646428,-152.27517289,0.00020164,2]
[368306465,1751106646437,-500.0,0.00020164,2]
[368306466,1751106646446,-557.29819206,0.00020164,2]
[368306467,1751106646455,-253.085076,0.00020187,2]
[368306468,1751106646464,-151.0,0.00020192,2]
[368306469,1751106646473,-152.8883299,0.00020192,2]
[368306470,1751106646482,-151.0,0.00020219,2]
[368306471,1751106646491,-151.0,0.00020247,2]
[368306472,1751106646501,-1500.0,0.00020268,2]
[368306473,1751106646510,-895.07622676,0.00020268,2]
[368306474,1751106646519,-460.0,0.00020273,2]
[368306475,1751106646528,-536.641073,0.00020273,2]
[368306476,1751106646538,-469.38,0.00020273,2]
[368306477,1751106646547,-460.0,0.00020273,2]
[368306478,1751106646556,-460.0,0.00020273,2]
[368306480,1751106646564,-460.0,0.00020273,2]
[368306481,1751106646573,-695.48,0.00020273,2]
[368306482,1751106646583,-460.0,0.00020273,2]
[368306483,1751106646592,-460.0,0.00020273,2]
[368306484,1751106646602,-858.67,0.00020273,2]
[368306485,1751106646611,-1077.62,0.00020273,2]
[368306486,1751106646620,-460.0,0.00020273,2]
[368306487,1751106646630,-537.78,0.00020273,2]
[368306488,1751106646640,-644.65,0.00020273,2]
[368306489,1751106646650,-555.2,0.00020273,2]
[368306490,1751106646659,-460.0,0.00020273,2]
[368306491,1751106646668,-460.0,0.00020273,2]
[368306492,1751106646678,-460.0,0.00020273,2]
[368306493,1751106646687,-1977.11,0.00020273,2]
[368306494,1751106646697,-2228.33,0.00020273,2]
[368306495,1751106646706,-460.0,0.00020273,2]
[368306496,1751106646727,-460.0,0.00020273,2]
[368306497,1751106646739,-460.0,0.00020273,2]
[368306498,1751106646749,-460.0,0.00020273,2]
[368306499,1751106646761,-652.63,0.00020273,2]
[368306500,1751106646772,-460.0,0.00020273,2]
[368306501,1751106646783,-411.83573595,0.00020273,2]
[368306502,1751106646795,-573.62,0.00020273,2]
[368306503,1751106646805,-460.0,0.00020273,2]
[368306504,1751106646815,-1764.57,0.00020273,2]
[368306505,1751106646825,-460.0,0.00020273,2]
[368306506,1751106646835,-539.94,0.00020273,2]
[368306507,1751106646846,-460.0,0.00020273,2]
[368306508,1751106646855,-460.0,0.00020273,2]
[368306509,1751106646865,-509.66,0.00020273,2]
[368306510,1751106646875,-2231.09,0.00020273,2]
[368306511,1751106646885,-460.0,0.00020273,2]
[368306512,1751106646895,-845.26,0.00020273,2]
[368306513,1751106646905,-2259.74,0.00020273,2]
[368306514,1751106646915,-460.0,0.00020273,2]
[368306515,1751106646925,-460.0,0.00020273,2]
[368306516,1751106646935,-3202.63,0.00020273,2]
[368306517,1751106646946,-821.41,0.00020273,2]
[368306518,1751106646957,-460.0,0.00020273,2]
[368306519,1751106646968,-460.0,0.00020273,2]
[368306520,1751106646978,-511.78,0.00020273,2]
[368306521,1751106646987,-460.0,0.00020273,2]
[368306522,1751106646997,-1620.3,0.00020273,2]
[368306523,1751106647007,-460.0,0.00020273,2]
[368306524,1751106647017,-460.0,0.00020273,2]
[368306525,1751106647027,-460.0,0.00020273,2]
[368306526,1751106647037,-1969.14,0.00020273,2]
[368306527,1751106647047,-589.27,0.00020273,2]
[368306528,1751106647058,-460.0,0.00020273,2]
[368306529,1751106647067,-1486.95,0.00020273,2]
[368306530,1751106647077,-460.0,0.00020273,2]
[368306531,1751106647087,-460.0,0.00020273,2]
[368306532,1751106647096,-460.0,0.00020273,2]
[368306533,1751106647106,-1282.48,0.00020273,2]
[368306534,1751106647115,-3912.61,0.00020273,2]
[368306535,1751106647125,-480.16,0.00020273,2]
[368306536,1751106647134,-489.39,0.00020273,2]
[368306537,1751106647144,-516.01,0.00020273,2]
[368306538,1751106647154,-514.13,0.00020273,2]
[368306539,1751106647163,-460.0,0.00020273,2]
[368306540,1751106647173,-291.21418704,0.00020273,2]
[368306541,1751106647183,-460.0,0.00020273,2]
[368306542,1751106647192,-460.0,0.00020273,2]
[368306543,1751106647201,-1432.27,0.00020273,2]
[368306544,1751106647210,-3305.21,0.00020273,2]
[368306545,1751106647220,-698.46,0.00020273,2]
[368306546,1751106647229,-1210.2,0.00020273,2]
[368306547,1751106647238,-471.34,0.00020273,2]
[368306548,1751106647248,-460.0,0.00020273,2]
[368306549,1751106647258,-810.23,0.00020273,2]
[368306550,1751106647267,-245.0,0.00020274,2]
[368306551,1751106647276,-168.85993162,0.00020284,2]
[368306552,1751106647286,-7911.28250911,0.00020314,3]
[368306553,1751106647295,-226.77747217,0.00020319,2]
[368306554,1751106647305,-512.10269403,0.00020319,2]
[368306555,1751106647315,-288.66192114,0.00020319,2]
[368306556,1751106647327,-2973.0,0.00020358,2]
[368306557,1751106647337,-151.0,0.00020438,2]
[368306558,1751106647350,-151.0,0.00020438,2]
[368306559,1751106647360,-268.67247821,0.00020438,2]
[368306560,1751106647369,-151.0,0.00020438,2]
[368306561,1751106647379,-151.0,0.00020438,2]
[368306562,1751106647388,-247.6835988,0.00020438,2]
[368306563,1751106647398,-160.0,0.00020459,3]
[368306564,1751106647407,-213.78848551,0.00020521,3]
[368306565,1751106647418,-160.0,0.00020521,3]
[368306566,1751106647427,-847.18566335,0.00020521,3]
[368306567,1751106647436,-12564.78152626,0.00020521,3]
[368306568,1751106647445,-7911.28250911,0.00020521,3]
[368306569,1751106647455,-460.0,0.00020547,2]
[368306570,1751106647464,-469.38,0.00020547,2]
[368306571,1751106647473,-460.0,0.00020547,2]
[368306572,1751106647483,-460.0,0.00020547,2]
[368306573,1751106647493,-460.0,0.00020547,2]
[368306574,1751106647502,-695.48,0.00020547,2]
[368306575,1751106647511,-460.0,0.00020547,2]
[368306576,1751106647521,-460.0,0.00020547,2]
[368306577,1751106647530,-858.67,0.00020547,2]
[368306578,1751106647539,-500.0,0.00020547,14]
[368306579,1751106647549,-1077.62,0.00020547,2]
[368306580,1751106647558,-460.0,0.00020547,2]
[368306581,1751106647567,-537.78,0.00020547,2]
[368306582,1751106647577,-644.65,0.00020547,2]
[368306583,1751106647587,-555.2,0.00020547,2]
[368306584,1751106647596,-460.0,0.00020547,2]
[368306585,1751106647605,-460.0,0.00020547,2]
[368306586,1751106647615,-1977.11,0.00020547,2]
[368306587,1751106647625,-2228.33,0.00020547,2]
[368306588,1751106647634,-460.0,0.00020547,2]
[368306589,1751106647644,-460.0,0.00020547,2]
[368306590,1751106647654,-460.0,0.00020547,2]
[368306591,1751106647664,-460.0,0.00020547,2]
[368306592,1751106647673,-652.63,0.00020547,2]
[368306593,1751106647683,-460.0,0.00020547,2]
[368306594,1751106647693,-573.62,0.00020547,2]
[368306595,1751106647702,-460.0,0.00020547,2]
[368306596,1751106647714,-1764.57,0.00020547,2]
[368306597,1751106647729,-460.0,0.00020547,2]
[368306598,1751106647739,-539.94,0.00020547,2]
[368306599,1751106647749,-460.0,0.00020547,2]
[368306600,1751106647758,-325.19851885,0.00020547,2]
[368306601,1751106647768,-509.66,0.00020547,2]
[368306602,1751106647778,-2231.09,0.00020547,2]
[368306603,1751106647787,-460.0,0.00020547,2]
[368306604,1751106647797,-845.26,0.00020547,2]
[368306605,1751106647809,-2259.74,0.00020547,2]
[368306606,1751106647818,-460.0,0.00020547,2]
[368306607,1751106647828,-460.0,0.00020547,2]
[368306608,1751106647837,-3202.63,0.00020547,2]
[368306609,1751106647846,-821.41,0.00020547,2]
[368306610,1751106647856,-460.0,0.00020547,2]
[368306611,1751106647865,-460.0,0.00020547,2]
[368306612,1751106647875,-511.78,0.00020547,2]
[368306613,1751106647884,-460.0,0.00020547,2]
[368306614,1751106647893,-1620.3,0.00020547,2]
[368306615,1751106647903,-460.0,0.00020547,2]
[368306616,1751106647912,-460.0,0.00020547,2]
[368306617,1751106647922,-1969.14,0.00020547,2]
[368306618,1751106647931,-589.27,0.00020547,2]
[368306619,1751106647940,-460.0,0.00020547,2]
[368306620,1751106647950,-1486.95,0.00020547,2]
[368306621,1751106647960,-460.0,0.00020547,2]
[368306622,1751106647969,-460.0,0.00020547,2]
[368306623,1751106647979,-460.0,0.00020547,2]
[368306624,1751106647988,-1282.48,0.00020547,2]
[368306625,1751106647997,-3912.61,0.00020547,2]
[368306626,1751106648006,-480.16,0.00020547,2]
[368306627,1751106648016,-489.39,0.00020547,2]
[368306628,1751106648026,-516.01,0.00020547,2]
[368306629,1751106648035,-514.13,0.00020547,2]
[368306630,1751106648044,-460.0,0.00020547,2]
[368306631,1751106648055,-460.0,0.00020547,2]
[368306632,1751106648065,-460.0,0.00020547,2]
[368306633,1751106648075,-1432.27,0.00020547,2]
[368306634,1751106648084,-3305.21,0.00020547,2]
[368306635,1751106648094,-698.46,0.00020547,2]
[368306636,1751106648103,-1210.2,0.00020547,2]
[368306637,1751106648112,-471.34,0.00020547,2]
[368306638,1751106648122,-460.0,0.00020547,2]
[368306639,1751106648133,-810.23,0.00020547,2]
[368306640,1751106648143,-3509.91,0.000206,2]
[368306641,1751106648153,-1185.85451162,0.0002061,2]
[368306642,1751106648162,-1500.0,0.00020639,2]
[368306643,1751106648172,-25000.0,0.00020647,2]
[368306644,1751106648182,-500.0,0.00020647,2]
[368306645,1751106648191,-5000.0,0.00020647,2]
[368306646,1751106648202,-175.04864089,0.00020647,2]
[368306647,1751106648212,-207.4,0.00020647,2]
[368306648,1751106648221,-500.0,0.00020647,2]
[368306649,1751106648231,-666.0,0.00020647,2]
[368306650,1751106648241,-500.0,0.00020647,2]
[368306651,1751106648251,-500.0,0.00020647,2]
[368306652,1751106648260,-500.0,0.00020647,2]
[368306653,1751106648270,-500.0,0.00020647,2]
[368306654,1751106648279,-500.0,0.00020647,2]
[368306655,1751106648290,-500.0,0.00020647,2]
[368306656,1751106648299,-500.0,0.00020647,2]
[368306657,1751106648308,-500.0,0.00020647,2]
[368306658,1751106648318,-500.0,0.00020647,2]
[368306659,1751106648327,-500.0,0.00020647,2]
[368306660,1751106648336,-500.0,0.00020647,2]
[368306661,1751106648346,-500.0,0.00020647,2]
[368306662,1751106648355,-500.0,0.00020647,2]
[368306663,1751106648365,-500.0,0.00020647,2]
[368306664,1751106648375,-500.0,0.00020647,2]
[368306665,1751106648385,-500.0,0.00020647,2]
[368306666,1751106648395,-500.0,0.00020647,2]
[368306667,1751106648404,-363.222,0.00020667,2]
[368306668,1751106648415,-690.642,0.00020702,2]
[368306669,1751106648424,-7911.28250911,0.00020728,3]
[368306670,1751106648434,-716.195754,0.00020757,2]
[368306671,1751106648444,-2780.0,0.00020794,2]
[368306672,1751106648453,-151.0,0.00020794,2]
[368306673,1751106648463,-151.0,0.00020794,2]
[368306674,1751106648473,-151.0,0.00020794,2]
[368306675,1751106648483,-151.0,0.00020794,2]
[368306676,1751106648493,-742.6949969,0.00020812,2]
[368306677,1751106648503,-2000.0,0.00020816,2]
[368306678,1751106648513,-154.598789,0.00020821,2]
[368306679,1751106648523,-411.05638163,0.00020821,2]
[368306680,1751106648533,-469.38,0.00020821,2]
[368306681,1751106648542,-460.0,0.00020821,2]
[368306682,1751106648552,-460.0,0.00020821,2]
[368306683,1751106648562,-233.72015984,0.00020821,2]
[368306684,1751106648571,-695.48,0.00020821,2]
[368306685,1751106648581,-460.0,0.00020821,2]
[368306686,1751106648591,-460.0,0.00020821,2]
[368306687,1751106648600,-858.67,0.00020821,2]
[368306688,1751106648610,-1077.62,0.00020821,2]
[368306689,1751106648620,-460.0,0.00020821,2]
[368306690,1751106648629,-537.78,0.00020821,2]
[368306691,1751106648639,-644.65,0.00020821,2]
[368306692,1751106648649,-555.2,0.00020821,2]
[368306693,1751106648658,-460.0,0.00020821,2]
[368306694,1751106648668,-460.0,0.00020821,2]
[368306695,1751106648678,-1977.11,0.00020821,2]
[368306696,1751106648688,-2228.33,0.00020821,2]
[368306697,1751106648698,-460.0,0.00020821,2]
[368306698,1751106648708,-184.67396051,0.00020821,2]
[368306699,1751106648730,-460.0,0.00020821,2]
[368306700,1751106648741,-652.63,0.00020821,2]
[368306701,1751106648751,-460.0,0.00020821,2]
[368306702,1751106648763,-573.62,0.00020821,2]
[368306703,1751106648773,-1764.57,0.00020821,2]
[368306704,1751106648783,-460.0,0.00020821,2]
[368306705,1751106648793,-460.0,0.00020821,2]
[368306706,1751106648803,-539.94,0.00020821,2]
[368306707,1751106648814,-460.0,0.00020821,2]
[368306708,1751106648824,-509.66,0.00020821,2]
[368306709,1751106648834,-2231.09,0.00020821,2]
[368306710,1751106648845,-460.0,0.00020821,2]
[368306711,1751106648854,-845.26,0.00020821,2]
[368306712,1751106648864,-2259.74,0.00020821,2]
[368306713,1751106648874,-460.0,0.00020821,2]
[368306714,1751106648883,-460.0,0.00020821,2]
[368306715,1751106648894,-3202.63,0.00020821,2]
[368306716,1751106648903,-821.41,0.00020821,2]
[368306717,1751106648913,-460.0,0.00020821,2]
[368306718,1751106648923,-460.0,0.00020821,2]
[368306719,1751106648933,-511.78,0.00020821,2]
[368306720,1751106648942,-460.0,0.00020821,2]
[368306721,1751106648952,-1620.3,0.00020821,2]
[368306722,1751106648962,-460.0,0.00020821,2]
[368306723,1751106648972,-460.0,0.00020821,2]
[368306724,1751106649140,-1969.14,0.00020821,2]
[368306725,1751106649150,-589.27,0.00020821,2]
[368306726,1751106649159,-460.0,0.00020821,2]
[368306727,1751106649169,-1486.95,0.00020821,2]
[368306728,1751106649179,-460.0,0.00020821,2]
[368306729,1751106649189,-460.0,0.00020821,2]
[368306730,1751106649199,-460.0,0.00020821,2]
[368306731,1751106649209,-1282.48,0.00020821,2]
[368306732,1751106649218,-3912.61,0.00020821,2]
[368306733,1751106649227,-480.16,0.00020821,2]
[368306734,1751106649236,-489.39,0.00020821,2]
[368306735,1751106649246,-516.01,0.00020821,2]
[368306736,1751106649255,-514.13,0.00020821,2]
[368306737,1751106649264,-460.0,0.00020821,2]
[368306738,1751106649273,-460.0,0.00020821,2]
[368306739,1751106649283,-1432.27,0.00020821,2]
[368306740,1751106649292,-3305.21,0.00020821,2]
[368306741,1751106649302,-698.46,0.00020821,2]
[368306742,1751106649311,-1210.2,0.00020821,2]
[368306743,1751106649321,-471.34,0.00020821,2]
[368306744,1751106649330,-810.23,0.00020821,2]
[368306745,1751106649339,-460.0,0.00020821,2]
[368306746,1751106649350,-2780.0,0.00020821,2]
[368306747,1751106649359,-151.0,0.00020821,2]
[368306748,1751106649369,-151.0,0.00020821,2]
[368306749,1751106649378,-2780.0,0.00020849,2]
[368306750,1751106649387,-151.0,0.00020849,2]
[368306751,1751106649397,-770.17471178,0.00020867,2]
[368306752,1751106649406,-2780.0,0.00020876,2]
[368306753,1751106649417,-2780.0,0.00020904,2]
[368306754,1751106649427,-334.14886311,0.00020922,2]
[368306755,1751106649436,-2780.0,0.00020931,2]
[368306756,1751106649446,-7911.28250911,0.00020934,4]
[368306757,1751106649455,-500.0,0.00020958,15]
[368306758,1751106649465,-2780.0,0.00020958,2]
[368306759,1751106649475,-2780.0,0.00020986,2]
[368306760,1751106649484,-269.1667008,0.00021,2]
[368306761,1751106649493,-5209.47194379,0.00021,2]
[368306762,1751106649503,-201.33996909,0.00021,2]
[368306763,1751106649512,-2780.0,0.00021013,2]
[368306764,1751106649522,-159.75163439,0.00021014,2]
[368306765,1751106649531,-7054.58916906,0.0002102,2]
[368306766,1751106649540,-2780.0,0.00021041,2]
[368306767,1751106649550,-2780.0,0.00021068,2]
[368306768,1751106649560,-151.0,0.00021095,2]
[368306769,1751106649569,-577.076069,0.00021095,2]
[368306770,1751106649579,-469.38,0.00021095,2]
[368306771,1751106649588,-460.0,0.00021095,2]
[368306772,1751106649597,-695.48,0.00021095,2]
[368306773,1751106649607,-460.0,0.00021095,2]
[368306774,1751106649616,-460.0,0.00021095,2]
[368306775,1751106649626,-858.67,0.00021095,2]
[368306776,1751106649635,-1077.62,0.00021095,2]
[368306777,1751106649645,-537.78,0.00021095,2]
[368306778,1751106649654,-644.65,0.00021095,2]
[368306779,1751106649663,-555.2,0.00021095,2]
[368306780,1751106649672,-460.0,0.00021095,2]
[368306781,1751106649682,-422.91590954,0.00021095,2]
[368306782,1751106649691,-1977.11,0.00021095,2]
[368306783,1751106649700,-2228.33,0.00021095,2]
[368306784,1751106649710,-460.0,0.00021095,2]
[368306785,1751106649722,-460.0,0.00021095,2]
[368306786,1751106649732,-652.63,0.00021095,2]
[368306787,1751106649741,-460.0,0.00021095,2]
[368306788,1751106649751,-573.62,0.00021095,2]
[368306789,1751106649760,-1764.57,0.00021095,2]
[368306790,1751106649770,-460.0,0.00021095,2]
[368306791,1751106649779,-460.0,0.00021095,2]
[368306792,1751106649789,-539.94,0.00021095,2]
[368306793,1751106649799,-460.0,0.00021095,2]
[368306794,1751106649808,-509.66,0.00021095,2]
[368306795,1751106649818,-2231.09,0.00021095,2]
[368306796,1751106649827,-460.0,0.00021095,2]
[368306797,1751106649836,-845.26,0.00021095,2]
[368306798,1751106649846,-2259.74,0.00021095,2]
[368306799,1751106649855,-460.0,0.00021095,2]
[368306800,1751106649865,-460.0,0.00021095,2]
[368306801,1751106649874,-3202.63,0.00021095,2]
[368306802,1751106649884,-821.41,0.00021095,2]
[368306803,1751106649894,-460.0,0.00021095,2]
[368306804,1751106649903,-460.0,0.00021095,2]
[368306805,1751106649912,-511.78,0.00021095,2]
[368306806,1751106649922,-460.0,0.00021095,2]
[368306807,1751106649931,-1620.3,0.00021095,2]
[368306808,1751106649941,-460.0,0.00021095,2]
[368306809,1751106649950,-460.0,0.00021095,2]
[368306810,1751106649961,-1969.14,0.00021095,2]
[368306811,1751106649971,-589.27,0.00021095,2]
[368306812,1751106649980,-460.0,0.00021095,2]
[368306813,1751106649990,-1486.95,0.00021095,2]
[368306814,1751106649999,-460.0,0.00021095,2]
[368306815,1751106650009,-460.0,0.00021095,2]
[368306816,1751106650018,-460.0,0.00021095,2]
[368306817,1751106650027,-1282.48,0.00021095,2]
[368306818,1751106650036,-3912.61,0.00021095,2]
[368306819,1751106650045,-480.16,0.00021095,2]
[368306820,1751106650055,-489.39,0.00021095,2]
[368306821,1751106650064,-516.01,0.00021095,2]
[368306822,1751106650073,-514.13,0.00021095,2]
[368306823,1751106650083,-460.0,0.00021095,2]
[368306824,1751106650092,-460.0,0.00021095,2]
[368306825,1751106650102,-1432.27,0.00021095,2]
[368306826,1751106650111,-3305.21,0.00021095,2]
[368306827,1751106650120,-698.46,0.00021095,2]
[368306828,1751106650130,-1210.2,0.00021095,2]
[368306829,1751106650139,-471.34,0.00021095,2]
[368306830,1751106650148,-810.23,0.00021095,2]